bitfinex-derivatives/quotes_BNBF0:USTF0_20250715
["timestamp","ask_amount","ask_price","bid_price","bid_amount"]
[1752573317154,0.98731005,677.74,676.88,0.25688534]
[1752573318153,0.98731005,677.73,676.88,0.25688534]
[1752573318654,0.98731005,677.72,676.88,0.25688534]
[1752573318952,0.98731005,677.74,676.88,0.25688534]
[1752573319954,0.98731005,677.73,676.88,0.25688534]
[1752573321162,0.98731005,677.71,676.88,0.25688534]
[1752573323156,0.98731005,677.7,676.88,0.25688534]
[1752573323956,0.98731005,677.68,676.88,0.25688534]
[1752573324358,1.97153866,678.04,676.88,0.25688534]
[1752573324552,0.25676025,678.11,676.88,0.25688534]
[1752573325058,0.98368007,677.71,676.88,0.25688534]
[1752573325754,0.98368007,677.7,676.88,0.25688534]
[1752573328153,0.98368007,677.69,676.88,0.25688534]
[1752573328756,0.98368007,677.68,676.88,0.25688534]
[1752573328959,0.98368007,677.7,676.88,0.25688534]
[1752573330260,0.98368007,677.69,676.88,0.25688534]
[1752573331162,0.98368007,677.68,676.88,0.25688534]
[1752573333165,0.98368007,677.74,676.88,0.25688534]
[1752573333359,0.98368007,677.75,676.88,0.25688534]
[1752573333765,0.98368007,677.74,676.88,0.25688534]
[1752573333964,0.98368007,677.75,676.88,0.25688534]
[1752573334166,0.98368007,677.74,676.88,0.25688534]
[1752573334964,0.98368007,677.79,676.88,0.25688534]
[1752573337268,0.98368007,677.78,676.88,0.25688534]
[1752573338370,0.98368007,677.77,676.88,0.25688534]
[1752573339371,0.98368007,677.76,676.88,0.25688534]
[1752573340377,0.98368007,677.78,676.88,0.25688534]
[1752573341167,0.98368007,677.77,676.88,0.25688534]
[1752573341773,0.98368007,677.78,676.88,0.25688534]
[1752573342369,0.98368007,677.77,676.88,0.25688534]
[1752573343074,0.98368007,677.76,676.88,0.25688534]
[1752573343279,0.98368007,677.75,676.88,0.25688534]
[1752573343773,0.98368007,677.74,676.88,0.25688534]
[1752573343975,0.98368007,677.75,676.88,0.25688534]
[1752573344178,0.98368007,677.74,676.88,0.25688534]
[1752573344881,0.98368007,677.71,676.88,0.25688534]
[1752573345179,0.98368007,677.7,676.88,0.25688534]
[1752573346175,0.98368007,677.69,676.88,0.25688534]
[1752573346578,0.98368007,677.7,676.88,0.25688534]
[1752573346980,0.98368007,677.68,676.88,0.25688534]
[1752573347281,0.98368007,677.67,676.88,0.25688534]
[1752573347576,0.98368007,677.66,676.88,0.25688534]
[1752573347781,0.98368007,677.61,676.88,0.25688534]
[1752573348076,0.98368007,677.59,676.84,0.99179631]
[1752573348398,0.98368007,677.5,676.91,0.99179631]
[1752573348576,0.98368007,677.44,676.85,0.99179631]
[1752573349784,0.98368007,677.44,676.86,0.99179631]
[1752573350078,0.98368007,677.41,676.87,0.99179631]
[1752573350379,0.98368007,677.41,676.88,0.99179631]
[1752573351779,0.98368007,677.39,676.86,0.99179631]
[1752573354180,0.98368007,677.43,676.83,0.99179631]
[1752573355184,0.98368007,677.44,676.82,0.99179631]
[1752573355882,0.25676025,678.11,676.69,0.25696311]
[1752573355883,0.98368007,677.49,676.79,0.99179631]
[1752573357181,0.98368007,677.49,676.78,0.99179631]
[1752573357386,0.98368007,677.5,676.75,0.99179631]
[1752573357587,0.98368007,677.47,676.7,0.99179631]
[1752573357785,1.9673601,677.9,676.68,0.99179631]
[1752573357786,0.98368007,677.46,676.68,0.99179631]
[1752573358086,0.98368007,677.46,676.46,1.322395]
[1752573358087,0.98368007,677.41,676.66,0.99179631]
[1752573358282,0.98368007,677.42,676.65,0.99179631]
[1752573359084,0.98368007,677.4,676.65,0.99179631]
[1752573359387,0.98368007,677.4,676.61,0.99179631]
[1752573359888,0.98368007,677.37,676.57,0.99179631]
[1752573360387,0.98368007,677.36,676.57,0.99179631]
[1752573360888,0.98368007,677.36,676.56,1.24878599]
[1752573361787,0.98368007,677.36,676.56,0.99179631]
[1752573362388,0.98368007,677.39,676.53,0.99179631]
[1752573362587,0.98368007,677.42,676.51,0.99179631]
[1752573363084,0.98368007,677.43,676.51,0.99179631]
[1752573363284,0.98368007,677.43,676.46,0.25703903]
[1752573363285,0.98368007,677.44,676.5,0.99179631]
[1752573363485,0.98368007,677.43,676.5,0.99179631]
[1752573363686,0.98368007,677.39,676.53,0.99179631]
[1752573364088,0.98368007,677.38,676.53,0.99179631]
[1752573364290,0.98368007,677.38,676.46,0.25703903]
[1752573364291,0.98368007,677.39,676.51,0.99179631]
[1752573365190,0.98368007,677.36,676.48,0.99179631]
[1752573365385,0.98368007,677.37,676.47,0.99179631]
[1752573365687,0.98368007,677.36,676.46,0.99179631]
[1752573365889,0.98368007,677.32,676.46,0.99179631]
[1752573366091,0.98368007,677.3,676.44,0.99179631]
[1752573366391,0.98368007,677.17,676.47,0.99179631]
[1752573366592,0.98368007,677.18,676.46,0.99179631]
[1752573366793,0.98368007,677.19,676.46,0.99179631]
[1752573367293,0.98368007,677.2,676.45,0.99179631]
[1752573367592,0.98368007,677.24,676.42,0.99179631]
[1752573367791,0.98368007,677.31,676.5,0.99179631]
[1752573367987,0.98368007,677.29,676.48,0.99179631]
[1752573368189,0.98368007,677.3,676.47,0.99179631]
[1752573369194,0.98368007,677.3,676.46,0.99179631]
[1752573369491,0.98368007,677.31,676.46,0.99179631]
[1752573370293,0.98368007,677.31,676.45,0.99179631]
[1752573371194,0.98368007,677.32,676.44,0.99179631]
[1752573371395,0.98368007,677.33,676.44,0.99179631]
[1752573371695,0.98368007,677.29,676.4,0.99179631]
[1752573372294,0.98368007,677.3,676.39,0.99179631]
[1752573373193,0.98368007,677.3,676.38,0.99179631]
[1752573374896,0.98368007,677.36,676.44,0.99179631]
[1752573376396,0.98368007,677.36,676.43,0.99179631]
[1752573377201,0.98368007,677.36,676.35,0.25706181]
[1752573377202,0.98368007,677.35,676.44,0.99179631]
[1752573377500,0.98368007,677.34,676.44,0.99179631]
[1752573377699,1.9673601,677.64,676.35,0.25706181]
[1752573377700,0.98368007,677.41,676.39,0.99179631]
[1752573378099,0.98368007,677.42,676.38,0.99179631]
[1752573378500,0.98368007,677.41,676.37,0.99179631]
[1752573378896,0.98368007,677.37,676.35,0.25706181]
[1752573379194,0.98368007,677.38,676.35,0.25706181]
[1752573381499,0.98368007,677.35,676.35,1.24885812]
[1752573381701,0.98368007,677.33,676.36,0.99179631]
[1752573385798,0.98368007,677.32,676.36,0.99179631]
[1752573386002,0.98368007,677.33,676.36,0.99179631]
[1752573386403,0.98368007,677.34,676.35,1.24885812]
[1752573386601,0.98368007,677.3,676.35,0.25706181]
[1752573387700,0.98368007,677.29,676.35,0.25706181]
[1752573389705,0.98368007,677.31,676.35,0.25706181]
[1752573390106,0.98368007,677.26,676.24,0.99179631]
[1752573390307,0.98368007,677.27,676.24,0.99179631]
[1752573390502,0.98368007,677.26,676.25,0.99179631]
[1752573391203,0.98368007,677.26,676.24,0.99179631]
[1752573392209,0.98368007,677.26,676.25,0.99179631]
[1752573392405,0.98368007,677.26,676.24,0.99179631]
[1752573394011,0.98368007,677.27,676.24,0.99179631]
[1752573394708,0.98368007,677.28,676.24,0.99179631]
[1752573395409,0.25709505,677.24,676.36,0.25709505]
[1752573398915,1.24077512,677.24,676.36,0.25709505]
[1752573399210,0.98368007,677.23,676.36,0.25709505]
[1752573401212,0.98368007,677.22,676.36,0.25709505]
[1752573402212,0.98368007,677.23,676.36,0.25709505]
[1752573402413,1.24077512,677.24,676.36,0.25709505]
[1752573402715,0.25709505,677.24,676.24,0.99179631]
[1752573403114,0.25709505,677.24,676.28,0.25711214]
[1752573409218,1.23917908,677.24,676.28,0.25711214]
[1752573409720,0.98208403,677.23,676.28,0.25711214]
[1752573409919,0.98208403,677.21,676.28,0.25711214]
[1752573411222,0.25709505,677.24,676.28,0.25711214]
[1752573411223,0.98208403,677.2,676.28,0.25711214]
[1752573412124,0.98208403,677.19,676.28,0.25711214]
[1752573412524,0.98208403,677.21,676.28,0.25711214]
[1752573413025,0.98208403,677.22,676.28,0.25711214]
[1752573413824,0.98208403,677.21,676.28,0.25711214]
[1752573415030,0.98208403,677.2,676.28,0.25711214]
[1752573415529,0.98208403,677.19,676.28,0.25711214]
[1752573416334,0.98208403,677.18,676.28,0.25711214]
[1752573417233,0.98208403,677.17,676.28,1.24836949]
[1752573418138,0.98208403,677.16,676.28,1.24836949]
[1752573418334,0.98208403,677.17,676.28,1.24836949]
[1752573418534,0.98208403,677.16,676.28,1.24836949]
[1752573419236,0.98208403,677.18,676.28,1.24836949]
[1752573420334,0.98208403,677.17,676.28,1.24836949]
[1752573420538,0.98208403,677.18,676.28,1.24836949]
[1752573421137,0.98208403,677.18,676.28,0.25711214]
[1752573421335,0.25709505,677.24,676.28,0.25711214]
[1752573421539,0.9847825,677.16,676.29,0.99414981]
[1752573421737,0.9847825,677.15,676.29,0.99414981]
[1752573421937,0.9847825,677.13,676.3,0.99414981]
[1752573422439,0.9847825,677.12,676.31,0.99414981]
[1752573422739,0.9847825,677.1,676.32,0.99414981]
[1752573423137,0.9847825,677.1,676.33,0.99414981]
[1752573423640,0.9847825,677.09,676.33,0.99414981]
[1752573424037,0.9847825,677.09,676.34,0.99414981]
[1752573425137,0.9847825,677.03,676.37,0.99414981]
[1752573425341,0.9847825,677.04,676.38,0.99414981]
[1752573426439,0.9847825,677.01,676.35,0.99414981]
[1752573427238,0.9847825,677.01,676.34,0.99414981]
[1752573427438,0.9847825,677.0,676.34,0.99414981]
[1752573428040,0.9847825,677.02,676.36,0.99414981]
[1752573428539,0.9847825,677.05,676.4,0.99414981]
[1752573431140,0.9847825,677.05,676.41,0.99414981]
[1752573431343,0.9847825,677.04,676.41,0.99414981]
[1752573432745,0.9847825,677.03,676.41,0.99414981]
[1752573434246,0.9847825,677.03,676.42,0.99414981]
[1752573434646,0.9847825,677.02,676.42,0.99414981]
[1752573435348,0.9847825,677.02,676.43,0.99414981]
[1752573436145,0.9847825,677.01,676.43,0.99414981]
[1752573437249,0.9847825,677.01,676.44,0.99414981]
[1752573437649,0.9847825,677.0,676.44,0.99414981]
[1752573438547,0.9847825,677.0,676.45,0.99414981]
[1752573439350,0.9847825,676.99,676.45,0.99414981]
[1752573441550,0.9847825,676.99,676.46,0.99414981]
[1752573441851,0.9847825,676.96,676.47,0.99414981]
[1752573442445,0.9847825,676.96,676.48,0.99414981]
[1752573443049,0.25709505,677.24,676.46,0.99414981]
[1752573443050,0.9847825,676.98,676.46,0.99414981]
[1752573444251,0.9847825,676.98,676.47,0.99414981]
[1752573445051,0.9847825,676.97,676.47,0.99414981]
[1752573446255,0.9847825,676.96,676.48,0.99414981]
[1752573447457,0.9847825,676.98,676.46,0.99414981]
[1752573447753,0.9847825,677.02,676.4,0.99414981]
[1752573448056,0.9847825,677.01,676.4,0.99414981]
[1752573448553,0.9847825,676.98,676.37,0.99414981]
[1752573452059,0.9847825,676.99,676.36,0.99414981]
[1752573454161,0.9847825,677.0,676.36,0.99414981]
[1752573454358,0.9847825,676.99,676.36,0.99414981]
[1752573454859,0.9847825,677.0,676.36,0.99414981]
[1752573455259,0.9847825,676.99,676.36,0.99414981]
[1752573455857,0.9847825,676.98,676.34,0.99414981]
[1752573457266,0.9847825,676.99,676.33,0.99414981]
[1752573457464,0.9847825,676.97,676.33,0.99414981]
[1752573457662,0.9847825,676.95,676.35,0.99414981]
[1752573458369,0.9847825,676.94,676.35,0.99414981]
[1752573459164,0.9847825,677.0,676.31,0.99414981]
[1752573459368,0.9847825,676.93,676.24,0.99414981]
[1752573459665,0.9847825,676.9,676.21,0.99414981]
[1752573459869,0.9847825,676.89,676.2,0.99414981]
[1752573460068,0.25709505,677.24,676.15,0.99414981]
[1752573460069,0.9847825,676.86,676.15,0.99414981]
[1752573460268,0.9847825,676.88,676.14,0.99414981]
[1752573460465,0.9847825,676.87,676.15,0.99414981]
[1752573461268,0.25709505,677.24,676.12,0.25716629]
[1752573461269,0.9847825,676.88,676.13,0.99414981]
[1752573461469,0.9847825,676.86,676.15,0.99414981]
[1752573462168,0.9847825,676.85,676.15,0.99414981]
[1752573463169,0.9847825,676.86,676.14,0.99414981]
[1752573463772,0.9847825,676.86,676.15,0.99414981]
[1752573463970,0.9847825,676.86,676.14,0.99414981]
[1752573464171,0.9847825,676.87,676.14,0.99414981]
[1752573464372,1.3115734,677.04,676.14,0.99414981]
[1752573464373,0.9847825,676.86,676.14,0.99414981]
[1752573465073,0.9847825,676.87,676.14,0.99414981]
[1752573465772,0.9847825,676.87,676.13,0.99414981]
[1752573466270,0.9847825,676.88,676.13,0.99414981]
[1752573466975,0.9847825,676.87,676.13,0.99414981]
[1752573468278,0.9847825,676.88,676.12,1.2513161]
[1752573469672,0.9847825,676.87,676.12,1.2513161]
[1752573469976,0.9847825,676.86,676.14,0.99414981]
[1752573470279,0.9847825,676.86,676.13,0.99414981]
[1752573471376,0.9847825,676.85,676.14,0.99414981]
[1752573471876,0.9847825,676.84,676.14,0.99414981]
[1752573472276,0.9847825,676.85,676.14,0.99414981]
[1752573472878,0.9847825,676.85,676.13,0.99414981]
[1752573473874,0.9847825,676.84,676.13,0.99414981]
[1752573474279,0.9847825,676.85,676.13,0.99414981]
[1752573474777,0.9847825,676.84,676.13,0.99414981]
[1752573475073,0.9847825,676.85,676.13,0.99414981]
[1752573475579,0.9847825,676.84,676.13,0.99414981]
[1752573476181,0.9847825,677.06,676.12,0.25716629]
[1752573476383,0.9847825,677.07,676.12,0.25716629]
[1752573476881,0.9847825,677.01,676.12,0.25716629]
[1752573477277,0.9847825,677.02,676.12,0.25716629]
[1752573482285,0.9847825,676.98,676.12,0.25716629]
[1752573483883,0.9847825,676.99,676.12,0.25716629]
[1752573486089,0.9847825,676.92,676.12,0.25716629]
[1752573487590,0.9847825,676.91,676.12,0.25716629]
[1752573488491,0.9847825,676.9,676.12,0.25716629]
[1752573489092,0.9847825,676.89,676.12,0.25716629]
[1752573492689,0.9847825,676.88,676.12,0.25716629]
[1752573493694,0.9847825,676.84,676.12,0.25716629]
[1752573497400,0.9847825,676.85,676.12,0.25716629]
[1752573498196,0.9847825,676.84,676.12,0.25716629]
[1752573498801,0.25709505,677.24,676.12,0.25716629]
[1752573498802,0.9847825,676.83,676.12,0.25716629]
[1752573499101,0.9847825,676.87,676.12,0.25716629]
[1752573500100,0.9847825,676.86,676.12,0.25716629]
[1752573501699,0.9847825,676.85,676.12,0.25716629]
[1752573502102,0.9847825,676.84,676.12,0.25716629]
[1752573503199,0.9847825,676.9,676.12,0.25716629]
[1752573504602,0.9847825,677.13,676.12,0.25716629]
[1752573505601,0.9847825,677.12,676.12,0.25716629]
[1752573506103,0.9847825,677.11,676.12,0.25716629]
[1752573506608,0.9847825,677.1,676.12,0.25716629]
[1752573507107,0.9847825,677.0,676.12,0.25716629]
[1752573508313,0.9847825,676.99,676.12,1.2513161]
[1752573508506,0.9847825,676.91,676.17,0.99414981]
[1752573509809,0.9847825,676.9,676.17,0.99414981]
[1752573510306,0.9847825,676.9,676.18,0.99414981]
[1752573512210,0.9847825,676.89,676.19,0.99414981]
[1752573513010,0.9847825,676.89,676.18,0.99414981]
[1752573513211,0.9847825,676.89,676.19,0.99414981]
[1752573514111,0.9847825,676.88,676.2,0.99414981]
[1752573514514,0.9847825,676.84,676.23,0.99414981]
[1752573514714,0.9847825,676.83,676.23,0.99414981]
[1752573515407,0.9847825,676.82,676.24,0.99414981]
[1752573515611,0.9847825,676.81,676.24,0.99414981]
[1752573516110,0.9847825,676.82,676.24,0.99414981]
[1752573516310,0.9847825,676.81,676.25,0.99414981]
[1752573517114,0.9847825,676.8,676.26,0.99414981]
[1752573517816,0.9847825,676.99,676.12,0.25716629]
[1752573519313,0.9847825,676.98,676.12,0.25716629]
[1752573523722,0.9847825,676.92,676.12,0.25716629]
[1752573524319,0.9847825,676.91,676.12,0.25716629]
[1752573524519,0.9847825,676.87,676.12,0.25716629]
[1752573525625,0.9847825,676.82,676.12,0.25716629]
[1752573526121,0.9847825,676.78,676.14,0.99414981]
[1752573526925,0.9847825,676.71,676.18,0.99414981]
[1752573527825,0.9847825,676.7,676.19,0.99414981]
[1752573528223,0.9847825,676.7,676.18,0.99414981]
[1752573528427,0.9847825,676.7,676.19,0.99414981]
[1752573528623,0.9847825,676.71,676.18,0.99414981]
[1752573529025,1.3115734,676.84,676.03,0.25722142]
[1752573529026,0.9847825,676.72,676.17,0.99414981]
[1752573532029,0.9847825,676.7,676.15,0.99414981]
[1752573536729,0.9847825,676.69,676.15,0.99414981]
[1752573538434,0.9847825,676.69,676.16,0.99414981]
[1752573538931,0.9847825,676.66,676.17,0.99414981]
[1752573539232,0.9847825,676.67,676.17,0.99414981]
[1752573540431,0.9847825,676.68,676.16,0.99414981]
[1752573541030,0.9847825,676.7,676.15,0.99414981]
[1752573541335,0.9847825,676.71,676.15,0.99414981]
[1752573541630,0.9847825,676.7,676.15,0.99414981]
[1752573543534,0.25709505,677.24,676.14,0.99414981]
[1752573543535,0.9847825,676.71,676.14,0.99414981]
[1752573548439,0.9847825,676.72,676.14,0.99414981]
[1752573549140,0.9847825,676.71,676.14,0.99414981]
[1752573550942,0.9847825,676.7,676.15,0.99414981]
[1752573551141,0.9847825,676.69,676.15,0.99414981]
[1752573551641,0.9847825,676.85,676.05,0.99414981]
[1752573552840,0.9847825,676.86,676.06,0.99414981]
[1752573559351,0.9847825,676.88,676.08,0.99414981]
[1752573560848,0.9847825,676.91,676.11,0.99414981]
[1752573561448,0.9847825,676.81,676.17,0.99414981]
[1752573562049,0.9847825,676.8,676.17,0.99414981]
[1752573562447,0.9847825,676.76,676.2,0.99414981]
[1752573565248,0.9847825,676.75,676.21,0.99414981]
[1752573565450,0.9847825,676.74,676.22,0.99414981]
[1752573567750,0.9847825,676.73,676.22,0.99414981]
[1752573568053,0.9847825,676.74,676.22,0.99414981]
[1752573568255,0.9847825,676.73,676.22,0.99414981]
[1752573568456,0.9847825,676.73,676.23,0.99414981]
[1752573569254,0.9847825,676.72,676.23,0.99414981]
[1752573570356,0.9847825,676.72,676.24,0.99414981]
[1752573571455,0.9847825,676.71,676.24,0.99414981]
[1752573571858,0.9847825,676.73,676.23,0.99414981]
[1752573573354,0.9847825,676.89,676.16,0.99414981]
[1752573575459,0.9847825,676.89,676.17,0.99414981]
[1752573576358,0.9847825,676.91,676.19,0.99414981]
[1752573578454,0.9847825,676.92,676.19,0.99414981]
[1752573580360,0.9847825,676.92,676.18,0.99414981]
[1752573582456,0.9847825,676.93,676.18,0.99414981]
[1752573583054,0.9847825,676.85,676.23,0.99414981]
[1752573585359,0.9847825,676.86,676.22,0.99414981]
[1752573585861,0.9847825,676.83,676.24,0.99414981]
[1752573586460,0.9847825,676.83,676.09,1.322395]
[1752573586461,0.9847825,676.82,676.25,0.99414981]
[1752573590261,1.3115734,676.97,676.1,1.322395]
[1752573590262,0.9847825,676.83,676.24,0.99414981]
[1752573591463,0.9847825,676.82,676.25,0.99414981]
[1752573595362,0.9847825,676.81,676.25,0.99414981]
[1752573596465,0.9847825,676.79,676.26,0.99414981]
[1752573597564,0.9847825,676.79,676.27,0.99414981]
[1752573600169,0.9847825,676.78,676.27,0.99414981]
[1752573601268,0.9847825,676.77,676.28,0.99414981]
[1752573601869,0.9847825,676.78,676.28,0.99414981]
[1752573602966,0.9847825,676.77,676.29,0.99414981]
[1752573603371,0.9847825,676.81,676.26,0.99414981]
[1752573605568,0.9847825,676.8,676.26,0.99414981]
[1752573605772,0.9847825,676.81,676.26,0.99414981]
[1752573606170,0.9847825,676.79,676.24,0.99414981]
[1752573606366,0.9847825,676.78,676.25,0.99414981]
[1752573606567,0.9847825,676.8,676.24,0.99414981]
[1752573607070,0.9847825,676.83,676.22,0.99414981]
[1752573607270,1.3115734,676.98,676.22,0.99414981]
[1752573607271,0.9847825,676.82,676.22,0.99414981]
[1752573607669,0.9847825,676.83,676.22,0.99414981]
[1752573608166,0.9847825,676.82,676.15,0.99414981]
[1752573608372,0.9847825,676.82,676.16,0.99414981]
[1752573609973,0.9847825,676.84,676.15,0.99414981]
[1752573610470,0.9847825,676.83,676.15,0.99414981]
[1752573611873,0.9847825,676.83,676.16,0.99414981]
[1752573612071,0.9847825,676.81,676.17,0.99414981]
[1752573613972,0.9847825,676.76,676.2,0.99414981]
[1752573614292,0.9847825,676.8,676.24,0.99414981]
[1752573616575,0.9847825,676.81,676.25,0.99414981]
[1752573616878,0.9847825,676.79,676.29,0.99414981]
[1752573617079,0.9847825,676.83,676.33,0.99414981]
[1752573617377,0.9847825,676.82,676.33,0.99414981]
[1752573619382,0.98599177,676.82,676.33,0.9964029]
[1752573621782,0.98599177,676.87,676.3,0.9964029]
[1752573623485,0.98599177,676.88,676.3,0.9964029]
[1752573624281,1.5687511,677.03,676.32,0.9964029]
[1752573624282,0.98599177,676.9,676.32,0.9964029]
[1752573625484,0.98599177,676.9,676.31,0.9964029]
[1752573625687,0.98599177,677.01,676.28,0.9964029]
[1752573626292,0.98599177,677.01,676.27,0.9964029]
[1752573626697,0.98599177,677.02,676.29,0.9964029]
[1752573628299,0.98599177,677.03,676.29,0.9964029]
[1752573628595,0.98599177,677.02,676.28,0.9964029]
[1752573629095,0.98599177,677.03,676.28,0.9964029]
[1752573629899,0.98599177,677.1,676.23,0.9964029]
[1752573630797,0.98599177,677.09,676.24,0.9964029]
[1752573631197,0.98599177,677.09,676.23,0.9964029]
[1752573631401,0.98599177,677.05,676.26,0.9964029]
[1752573631897,0.98599177,676.94,676.34,0.9964029]
[1752573632101,0.98599177,676.9,676.36,0.9964029]
[1752573632601,0.98599177,676.89,676.37,0.9964029]
[1752573632803,0.98599177,676.89,676.36,0.9964029]
[1752573632998,0.98599177,676.88,676.36,0.9964029]
[1752573633502,0.98599177,676.89,676.37,0.9964029]
[1752573633902,0.98599177,676.88,676.38,0.9964029]
[1752573634503,0.98599177,676.89,676.38,0.9964029]
[1752573635005,0.98599177,676.92,676.41,0.9964029]
[1752573635201,0.98599177,676.92,676.4,0.9964029]
[1752573635803,0.98599177,676.93,676.4,0.9964029]
[1752573636200,0.98599177,676.92,676.4,0.9964029]
[1752573636401,0.98599177,676.93,676.4,0.9964029]
[1752573637104,0.98599177,676.94,676.39,0.9964029]
[1752573637807,0.98599177,676.97,676.37,0.9964029]
[1752573638107,0.98599177,676.98,676.37,0.9964029]
[1752573638704,0.98599177,676.97,676.37,0.9964029]
[1752573639806,0.98599177,677.0,676.35,0.9964029]
[1752573640009,0.98599177,677.03,676.39,0.9964029]
[1752573640211,0.98599177,677.04,676.38,0.9964029]
[1752573641313,0.98599177,677.03,676.39,0.9964029]
[1752573643409,0.98599177,677.07,676.36,0.9964029]
[1752573644113,0.98599177,677.08,676.35,0.9964029]
[1752573646213,0.98599177,677.09,676.35,0.9964029]
[1752573647014,0.98599177,677.09,676.34,0.9964029]
[1752573647711,0.98599177,677.09,676.16,1.322395]
[1752573647712,0.98417881,677.08,676.35,0.99419148]
[1752573649912,0.98417881,677.08,676.34,0.99419148]
[1752573650320,0.98417881,677.09,676.34,0.99419148]
[1752573650515,0.98417881,677.04,676.37,0.99419148]
[1752573651915,0.98417881,677.04,676.39,0.99419148]
[1752573652114,0.98417881,677.05,676.38,0.99419148]
[1752573654919,0.98417881,677.09,676.35,0.99419148]
[1752573655121,0.98417881,677.1,676.35,0.99419148]
[1752573655421,0.25711119,677.2,676.03,0.25722142]
[1752573655422,0.98417881,677.08,676.36,0.99419148]
[1752573655819,0.98417881,677.07,676.35,0.99419148]
[1752573658218,0.98417881,677.06,676.36,0.99419148]
[1752573658421,0.98417881,677.04,676.34,0.99419148]
[1752573658616,0.98417881,676.97,676.27,0.99419148]
[1752573658916,0.98417881,676.93,676.23,0.99419148]
[1752573659121,0.98417881,676.92,676.23,0.99419148]
[1752573659322,0.98417881,676.92,676.22,0.99419148]
[1752573659522,0.98417881,676.88,676.19,0.99419148]
[1752573659722,0.98417881,676.87,676.18,0.99419148]
[1752573660619,1.3115734,677.0,676.03,0.25722142]
[1752573660620,0.98417881,676.84,676.2,0.99419148]
[1752573662825,0.98417881,676.85,676.2,0.99419148]
[1752573664032,0.98417881,676.84,676.2,0.99419148]
[1752573665226,0.98417881,676.85,676.19,0.99419148]
[1752573666123,0.98417881,676.85,676.2,0.99419148]
[1752573668123,0.98417881,676.84,676.2,0.99419148]
[1752573668526,0.98417881,676.85,676.19,0.99419148]
[1752573669227,0.98417881,676.87,676.18,0.99419148]
[1752573670727,0.98417881,676.89,676.2,0.99419148]
[1752573671423,0.98417881,676.88,676.21,0.99419148]
[1752573672326,0.98417881,676.89,676.2,0.99419148]
[1752573672530,0.98417881,676.92,676.23,0.99419148]
[1752573673326,0.98417881,676.91,676.24,0.99419148]
[1752573674131,0.98417881,676.92,676.24,0.99419148]
[1752573674331,0.98417881,676.91,676.23,0.99419148]
[1752573676231,0.98417881,676.9,676.23,0.99419148]
[1752573678427,0.98417881,676.91,676.23,0.99419148]
[1752573682336,0.98417881,677.01,676.11,0.99419148]
[1752573685333,0.98417881,677.01,676.1,0.99419148]
[1752573685837,0.98417881,676.99,676.09,0.99419148]
[1752573686133,0.98417881,676.99,676.08,0.99419148]
[1752573688233,0.98417881,677.01,676.07,0.99419148]
[1752573688539,0.98417881,676.97,676.03,0.25722142]
[1752573689437,0.25711119,677.2,676.08,0.99419148]
[1752573689438,0.98417881,676.87,676.08,0.99419148]
[1752573691539,0.98417881,676.88,676.08,0.99419148]
[1752573692440,0.98417881,676.88,676.07,0.99419148]
[1752573693838,0.98417881,676.88,676.03,0.25722142]
[1752573693839,0.98417881,676.87,676.08,0.99419148]
[1752573694540,0.98417881,676.82,676.11,0.99419148]
[1752573695840,0.98417881,676.85,676.09,0.99419148]
[1752573698642,0.98417881,676.84,676.09,0.99419148]
[1752573701448,0.98417881,676.86,676.03,1.2514129]
[1752573701744,0.98417881,676.84,676.03,0.25722142]
[1752573702752,0.98417881,676.84,676.01,0.99419148]
[1752573703253,0.98417881,676.87,675.99,0.99419148]
[1752573703549,0.98417881,676.86,675.99,0.99419148]
[1752573703750,0.98417881,676.86,675.96,0.99419148]
[1752573704053,0.98417881,676.79,675.95,0.25724043]
[1752573704252,0.98417881,676.78,675.95,0.25724043]
[1752573705252,0.98417881,676.74,675.95,0.25724043]
[1752573705450,0.98417881,676.75,675.95,0.25724043]
[1752573706752,0.98417881,676.76,675.95,0.25724043]
[1752573707249,0.98417881,676.73,675.95,0.25724043]
[1752573707454,0.98417881,676.74,675.95,0.25724043]
[1752573708057,0.98417881,676.73,675.95,0.25724043]
[1752573708452,0.98417881,676.74,675.95,0.25724043]
[1752573709156,0.98417881,676.73,675.95,0.25724043]
[1752573709653,0.98417881,676.74,675.95,0.25724043]
[1752573709857,0.98417881,676.73,675.95,0.25724043]
[1752573710759,0.98417881,676.72,675.95,0.25724043]
[1752573714265,0.98417881,676.71,675.95,0.25724043]
[1752573714462,0.98417881,676.72,675.95,0.25724043]
[1752573714865,0.98417881,676.71,675.95,0.25724043]
[1752573715166,0.98417881,676.69,675.95,0.25724043]
[1752573715465,0.98417881,676.72,675.97,0.99419148]
[1752573717166,0.98417881,676.72,675.98,0.99419148]
[1752573718262,0.98417881,676.73,675.98,0.99419148]
[1752573718467,0.98417881,676.77,676.05,0.99419148]
[1752573718668,0.98417881,676.83,676.07,0.99419148]
[1752573718868,1.3115734,676.99,675.95,0.25724043]
[1752573718869,0.98417881,676.87,676.13,0.99419148]
[1752573719164,0.98417881,676.86,676.13,0.99419148]
[1752573719365,0.98417881,676.91,676.18,0.99419148]
[1752573721872,0.98417881,676.93,676.17,0.99419148]
[1752573723769,0.98417881,676.94,676.16,0.99419148]
[1752573727581,0.98417881,676.95,676.15,0.99419148]
[1752573729985,0.98417881,676.94,676.16,0.99419148]
[1752573730981,0.98417881,676.95,676.15,0.99419148]
[1752573731585,0.98417881,676.93,676.17,0.99419148]